[Event "Chess Festival Groningen 2023 | A"]
[Site "Groningen, Netherlands"]
[Date "2023.12.24"]
[Round "4.16"]
[White "Kollen, Zyon"]
[Black "Labruyere, Roger"]
[Result "1-0"]
[TimeControl "90min/40moves + 30min + 30sec/move"]
[WhiteElo "2318"]
[BlackElo "2208"]

1. e4 {[%clk 01:30:56]} {[%emt 00:00:04]} c5 {[%clk 01:30:57]} {[%emt
00:00:04]} 2. Nf3 {[%clk 01:31:21]} {[%emt 00:00:06]} d6 {[%clk 01:31:22]}
{[%emt 00:00:04]} 3. d4 {[%clk 01:31:46]} {[%emt 00:00:04]} cxd4 {[%clk
01:31:50]} {[%emt 00:00:03]} 4. Nxd4 {[%clk 01:32:11]} {[%emt 00:00:05]} Nf6
{[%clk 01:32:14]} {[%emt 00:00:04]} 5. Nc3 {[%clk 01:32:36]} {[%emt 00:00:07]}
a6 {[%clk 01:32:41]} {[%emt 00:00:03]} 6. Be3 {[%clk 01:32:59]} {[%emt
00:00:06]} e5 {[%clk 01:33:06]} {[%emt 00:00:06]} 7. Nb3 {[%clk 01:33:24]}
{[%emt 00:00:05]} Be6 {[%clk 01:33:25]} {[%emt 00:00:11]} 8. f3 {[%clk
01:33:49]} {[%emt 00:00:06]} h5 {[%clk 01:33:44]} {[%emt 00:00:10]} 9. Qd2
{[%clk 01:31:57]} {[%emt 00:02:22]} Be7 {[%clk 01:33:32]} {[%emt 00:00:41]} 10.
Be2 {[%clk 01:31:01]} {[%emt 00:01:26]} Nbd7 {[%clk 01:33:53]} {[%emt
00:00:09]} 11. a4 {[%clk 01:27:52]} {[%emt 00:03:40]} Rc8 {[%clk 01:28:12]}
{[%emt 00:06:10]} 12. O-O {[%clk 01:22:21]} {[%emt 00:06:02]} O-O {[%clk
01:24:42]} {[%emt 00:04:00]} 13. Rfd1 {[%clk 01:13:54]} {[%emt 00:08:56]} Qc7
{[%clk 01:23:07]} {[%emt 00:02:05]} 14. Rac1 {[%clk 01:13:39]} {[%emt
00:00:45]} Nb6 {[%clk 01:21:40]} {[%emt 00:01:57]} 15. a5 {[%clk 01:07:59]}
{[%emt 00:06:11]} Nc4 {[%clk 01:20:05]} {[%emt 00:02:04]} 16. Bxc4 {[%clk
01:08:23]} {[%emt 00:00:06]} Qxc4 {[%clk 01:18:56]} {[%emt 00:01:39]} 17. Nd5
{[%clk 01:03:11]} {[%emt 00:05:42]} Nxd5 {[%clk 01:19:15]} {[%emt 00:00:12]} 18.
exd5 {[%clk 01:03:38]} {[%emt 00:00:04]} Bf5 {[%clk 01:19:39]} {[%emt
00:00:06]} 19. Na1 {[%clk 00:54:58]} {[%emt 00:09:10]} Qb5 {[%clk 01:15:08]}
{[%emt 00:05:01]} 20. b3 {[%clk 00:50:47]} {[%emt 00:04:41]} Bd8 {[%clk
01:14:13]} {[%emt 00:01:24]} 21. b4 {[%clk 00:33:41]} {[%emt 00:17:37]} Rc4
{[%clk 01:13:37]} {[%emt 00:01:04]} 22. c3 {[%clk 00:34:07]} {[%emt 00:00:06]}
Bf6 {[%clk 01:12:57]} {[%emt 00:01:10]} 23. Nb3 {[%clk 00:31:01]} {[%emt
00:03:36]} Qa4 {[%clk 01:10:30]} {[%emt 00:02:55]} 24. Qb2 {[%clk 00:29:24]}
{[%emt 00:02:09]} Rfc8 {[%clk 01:10:46]} {[%emt 00:00:15]} 25. Re1 {[%clk
00:22:30]} {[%emt 00:07:23]} e4 {[%clk 01:05:50]} {[%emt 00:05:26]} 26. Bd4
{[%clk 00:19:43]} {[%emt 00:03:17]} exf3 {[%clk 01:05:37]} {[%emt 00:00:43]} 27.
Bxf6 {[%clk 00:17:42]} {[%emt 00:02:31]} Rg4 {[%clk 01:05:59]} {[%emt
00:00:08]} 28. Nd4 {[%clk 00:15:22]} {[%emt 00:02:50]} Bh7 {[%clk 00:53:13]}
{[%emt 00:13:16]} 29. Nxf3 {[%clk 00:14:51]} {[%emt 00:01:01]} gxf6 {[%clk
00:53:36]} {[%emt 00:00:06]} 30. c4 {[%clk 00:12:29]} {[%emt 00:02:53]} Kg7
{[%clk 00:52:11]} {[%emt 00:01:54]} 31. Nd2 {[%clk 00:11:30]} {[%emt 00:01:30]}
Qd7 {[%clk 00:48:10]} {[%emt 00:04:31]} 32. Rf1 {[%clk 00:10:33]} {[%emt
00:01:27]} Rg6 {[%clk 00:47:02]} {[%emt 00:01:39]} 33. Ne4 {[%clk 00:08:10]}
{[%emt 00:02:53]} Qe7 {[%clk 00:47:01]} {[%emt 00:00:30]} 34. Ng3 {[%clk
00:04:32]} {[%emt 00:04:07]} Rg5 {[%clk 00:21:55]} {[%emt 00:25:36]} 35. Rce1
{[%clk 00:04:27]} {[%emt 00:00:35]} Re5 {[%clk 00:22:07]} {[%emt 00:00:18]} 36.
Nxh5+ {[%clk 00:01:37]} {[%emt 00:03:21]} Kf8 {[%clk 00:21:28]} {[%emt
00:01:09]} 37. Rxe5 {[%clk 00:00:53]} {[%emt 00:01:15]} Qxe5 {[%clk 00:19:12]}
{[%emt 00:02:46]} 38. Qxe5 {[%clk 00:01:18]} {[%emt 00:00:05]} fxe5 {[%clk
00:19:38]} {[%emt 00:00:04]} 39. Rc1 {[%clk 00:01:35]} {[%emt 00:00:13]} Bg6
{[%clk 00:19:03]} {[%emt 00:01:05]} 40. Ng3 {[%clk 00:01:15]} {[%emt 00:00:50]}
f5 {[%clk 00:19:00]} {[%emt 00:00:32]} 41. c5 {[%clk 00:25:06]} {[%emt
00:06:40]} f4 {[%clk 00:49:11]} {[%emt 00:00:19]} 42. Ne2 {[%clk 00:25:17]}
{[%emt 00:00:20]} Bf7 {[%clk 00:49:17]} {[%emt 00:00:25]} 43. cxd6 {[%clk
00:24:08]} {[%emt 00:01:38]} Rxc1+ {[%clk 00:49:38]} {[%emt 00:00:08]} 44. Nxc1
{[%clk 00:24:33]} {[%emt 00:00:05]} Bxd5 {[%clk 00:50:05]} {[%emt 00:00:03]} 45.
Nd3 {[%clk 00:24:45]} {[%emt 00:00:19]} 1-0

[Event "Chess Festival Groningen 2023 | A"]
[Site "Groningen, Netherlands"]
[Date "2023.12.24"]
[Round "4.17"]
[White "Kanyamarala, Trisha"]
[Black "Elgersma, Onno"]
[Result "1/2-1/2"]
[TimeControl "90min/40moves + 30min + 30sec/move"]
[WhiteElo "2184"]
[BlackElo "2310"]

1. d4 {[%clk 01:30:54]} {[%emt 00:00:05]} Nf6 {[%clk 01:30:40]} {[%emt
00:00:20]} 2. c4 {[%clk 01:31:11]} {[%emt 00:00:12]} e6 {[%clk 01:30:54]}
{[%emt 00:00:16]} 3. Nf3 {[%clk 01:31:29]} {[%emt 00:00:12]} d5 {[%clk
01:29:21]} {[%emt 00:02:04]} 4. Nc3 {[%clk 01:31:47]} {[%emt 00:00:11]} c5
{[%clk 01:28:06]} {[%emt 00:01:46]} 5. cxd5 {[%clk 01:31:51]} {[%emt 00:00:26]}
exd5 {[%clk 01:28:30]} {[%emt 00:00:05]} 6. Bg5 {[%clk 01:31:54]} {[%emt
00:00:26]} Be6 {[%clk 01:28:10]} {[%emt 00:00:51]} 7. Bxf6 {[%clk 01:31:51]}
{[%emt 00:00:33]} Qxf6 {[%clk 01:27:51]} {[%emt 00:00:49]} 8. e4 {[%clk
01:32:05]} {[%emt 00:00:15]} dxe4 {[%clk 01:27:50]} {[%emt 00:00:31]} 9. Nxe4
{[%clk 01:30:50]} {[%emt 00:01:44]} Qf4 {[%clk 01:27:18]} {[%emt 00:01:03]} 10.
Bb5+ {[%clk 01:30:21]} {[%emt 00:00:59]} Nc6 {[%clk 01:17:44]} {[%emt
00:10:04]} 11. Qe2 {[%clk 01:30:14]} {[%emt 00:00:37]} Be7 {[%clk 01:11:35]}
{[%emt 00:06:39]} 12. O-O {[%clk 01:28:54]} {[%emt 00:01:49]} O-O {[%clk
01:09:22]} {[%emt 00:02:44]} 13. Nxc5 {[%clk 01:27:27]} {[%emt 00:01:58]} Bxc5
{[%clk 00:49:03]} {[%emt 00:20:48]} 14. dxc5 {[%clk 01:27:37]} {[%emt
00:00:21]} Bd5 {[%clk 00:49:27]} {[%emt 00:00:07]} 15. Bxc6 {[%clk 01:25:02]}
{[%emt 00:03:04]} bxc6 {[%clk 00:49:08]} {[%emt 00:00:49]} 16. Qd2 {[%clk
01:15:48]} {[%emt 00:09:43]} Qg4 {[%clk 00:46:31]} {[%emt 00:03:07]} 17. h3
{[%clk 01:14:53]} {[%emt 00:01:25]} Qh5 {[%clk 00:45:31]} {[%emt 00:01:30]} 18.
Nh2 {[%clk 01:06:10]} {[%emt 00:09:12]} Rad8 {[%clk 00:39:38]} {[%emt
00:06:23]} 19. Qc3 {[%clk 01:01:43]} {[%emt 00:04:57]} Qg5 {[%clk 00:32:46]}
{[%emt 00:07:22]} 20. Qg3 {[%clk 00:52:51]} {[%emt 00:09:23]} Qd2 {[%clk
00:32:31]} {[%emt 00:00:44]} 21. b3 {[%clk 00:52:01]} {[%emt 00:01:20]} Qb4
{[%clk 00:28:21]} {[%emt 00:04:40]} 22. Rac1 {[%clk 00:49:41]} {[%emt
00:02:50]} a5 {[%clk 00:25:26]} {[%emt 00:03:25]} 23. Rfe1 {[%clk 00:47:13]}
{[%emt 00:02:58]} a4 {[%clk 00:24:05]} {[%emt 00:01:51]} 24. bxa4 {[%clk
00:40:01]} {[%emt 00:07:42]} Qxa4 {[%clk 00:23:59]} {[%emt 00:00:36]} 25. a3
{[%clk 00:38:48]} {[%emt 00:01:42]} h5 {[%clk 00:19:04]} {[%emt 00:05:25]} 26.
Qg5 {[%clk 00:32:46]} {[%emt 00:06:32]} Qxa3 {[%clk 00:18:17]} {[%emt
00:01:17]} 27. Qxh5 {[%clk 00:32:01]} {[%emt 00:01:15]} Rde8 {[%clk 00:15:16]}
{[%emt 00:03:32]} 28. Ng4 {[%clk 00:27:41]} {[%emt 00:04:50]} Qb4 {[%clk
00:10:35]} {[%emt 00:05:11]} 29. Ne3 {[%clk 00:20:20]} {[%emt 00:07:51]} Be4
{[%clk 00:07:25]} {[%emt 00:03:41]} 30. Qh4 {[%clk 00:16:45]} {[%emt 00:04:05]}
Qb5 {[%clk 00:05:56]} {[%emt 00:01:58]} 31. Nc4 {[%clk 00:14:17]} {[%emt
00:02:58]} Bd5 {[%clk 00:04:25]} {[%emt 00:02:02]} 32. Nd6 {[%clk 00:11:08]}
{[%emt 00:03:39]} Rxe1+ {[%clk 00:04:49]} {[%emt 00:00:06]} 33. Rxe1 {[%clk
00:11:32]} {[%emt 00:00:05]} Qa5 {[%clk 00:03:09]} {[%emt 00:02:11]} 34. Re3
{[%clk 00:11:04]} {[%emt 00:00:58]} Be6 {[%clk 00:02:53]} {[%emt 00:00:46]} 35.
Rg3 {[%clk 00:07:08]} {[%emt 00:04:26]} Ra8 {[%clk 00:02:23]} {[%emt 00:01:00]}
36. Ne4 {[%clk 00:06:04]} {[%emt 00:01:34]} g6 {[%clk 00:00:38]} {[%emt
00:02:16]} 37. Ng5 {[%clk 00:04:27]} {[%emt 00:02:07]} Qa1+ {[%clk 00:00:47]}
{[%emt 00:00:21]} 38. Kh2 {[%clk 00:04:53]} {[%emt 00:00:04]} Bd5 {[%clk
00:00:35]} {[%emt 00:00:42]} 39. Ne4 {[%clk 00:01:03]} {[%emt 00:04:20]} Kg7
{[%clk 00:00:36]} {[%emt 00:00:29]} 40. Nd6 {[%clk 00:00:57]} {[%emt 00:00:37]}
Qf6 {[%clk 00:00:36]} {[%emt 00:00:30]} 41. Rg5 {[%clk 00:27:39]} {[%emt
00:06:41]} Be6 {[%clk 00:23:01]} {[%emt 00:08:05]} 42. Qg3 {[%clk 00:22:54]}
{[%emt 00:05:14]} Qd4 {[%clk 00:19:53]} {[%emt 00:03:38]} 43. Rf5 {[%clk
00:18:25]} {[%emt 00:05:00]} Qb2 {[%clk 00:15:06]} {[%emt 00:05:16]} 44. Rf3
{[%clk 00:17:20]} {[%emt 00:01:36]} Ra1 {[%clk 00:05:34]} {[%emt 00:10:02]} 45.
Ne8+ {[%clk 00:16:41]} {[%emt 00:01:09]} Kf8 {[%clk 00:05:09]} {[%emt
00:00:55]} 46. Nf6 {[%clk 00:13:56]} {[%emt 00:03:15]} Kg7 {[%clk 00:03:16]}
{[%emt 00:02:23]} 47. Qh4 {[%clk 00:10:47]} {[%emt 00:03:39]} Qe5+ {[%clk
00:03:40]} {[%emt 00:00:06]} 48. g3 {[%clk 00:10:11]} {[%emt 00:01:06]} Bf5
{[%clk 00:03:28]} {[%emt 00:00:41]} 49. Qh7+ {[%clk 00:05:18]} {[%emt
00:05:24]} Kxf6 {[%clk 00:03:35]} {[%emt 00:00:23]} 50. Qh8+ {[%clk 00:02:55]}
{[%emt 00:02:52]} Ke6 {[%clk 00:04:04]} {[%emt 00:00:02]} 51. Re3 {[%clk
00:02:38]} {[%emt 00:00:46]} Be4 {[%clk 00:04:17]} {[%emt 00:00:16]} 52. Rxe4
{[%clk 00:02:18]} {[%emt 00:00:51]} Rh1+ {[%clk 00:04:16]} {[%emt 00:00:31]} 53.
Kxh1 {[%clk 00:02:41]} {[%emt 00:00:07]} Qxe4+ {[%clk 00:04:43]} {[%emt
00:00:04]} 54. Kh2 {[%clk 00:02:05]} {[%emt 00:01:06]} Kd5 {[%clk 00:03:29]}
{[%emt 00:01:44]} 55. Qf8 {[%clk 00:02:08]} {[%emt 00:00:27]} Qf3 {[%clk
00:03:36]} {[%emt 00:00:23]} 56. Qd6+ {[%clk 00:01:14]} {[%emt 00:01:24]} Kc4
{[%clk 00:04:05]} {[%emt 00:00:01]} 57. Kg1 {[%clk 00:01:24]} {[%emt 00:00:20]}
Qe4 {[%clk 00:02:51]} {[%emt 00:01:43]} 58. h4 {[%clk 00:01:22]} {[%emt
00:00:32]} Qb1+ {[%clk 00:02:24]} {[%emt 00:00:57]} 59. Kg2 {[%clk 00:01:37]}
{[%emt 00:00:15]} Qe4+ {[%clk 00:02:49]} {[%emt 00:00:05]} 60. Kg1 {[%clk
00:01:40]} {[%emt 00:00:26]} Qb1+ {[%clk 00:03:05]} {[%emt 00:00:15]} 61. Kg2
{[%clk 00:01:31]} {[%emt 00:00:40]} Qe4+ {[%clk 00:03:29]} {[%emt 00:00:06]} 62.
Kg1 {[%clk 00:01:02]} {[%emt 00:00:59]} 1/2-1/2

[Event "Chess Festival Groningen 2023 | A"]
[Site "Groningen, Netherlands"]
[Date "2023.12.24"]
[Round "4.18"]
[White "Van Batenburg, Mees"]
[Black "Slagboom, Leandro"]
[Result "0-1"]
[TimeControl "90min/40moves + 30min + 30sec/move"]
[WhiteElo "2109"]
[BlackElo "2304"]

1. e4 {[%clk 01:30:58]} {[%emt 00:00:02]} e6 {[%clk 01:30:55]} {[%emt
00:00:05]} 2. d4 {[%clk 01:31:22]} {[%emt 00:00:06]} d5 {[%clk 01:31:21]}
{[%emt 00:00:04]} 3. Nc3 {[%clk 01:31:41]} {[%emt 00:00:11]} Bb4 {[%clk
01:31:46]} {[%emt 00:00:05]} 4. e5 {[%clk 01:32:03]} {[%emt 00:00:08]} c5
{[%clk 01:32:10]} {[%emt 00:00:06]} 5. a3 {[%clk 01:32:27]} {[%emt 00:00:06]}
Bxc3+ {[%clk 01:32:36]} {[%emt 00:00:04]} 6. bxc3 {[%clk 01:32:52]} {[%emt
00:00:05]} Nc6 {[%clk 01:32:53]} {[%emt 00:00:13]} 7. Qg4 {[%clk 01:33:08]}
{[%emt 00:00:14]} g6 {[%clk 01:33:16]} {[%emt 00:00:07]} 8. a4 {[%clk
01:33:28]} {[%emt 00:00:10]} Qa5 {[%clk 01:32:45]} {[%emt 00:01:01]} 9. Bd2
{[%clk 01:33:33]} {[%emt 00:00:25]} Bd7 {[%clk 01:32:37]} {[%emt 00:00:37]} 10.
h4 {[%clk 01:31:00]} {[%emt 00:03:03]} h6 {[%clk 01:32:17]} {[%emt 00:00:50]}
11. Qf4 {[%clk 01:30:52]} {[%emt 00:00:38]} Nge7 {[%clk 01:30:26]} {[%emt
00:02:22]} 12. dxc5 {[%clk 01:30:15]} {[%emt 00:01:07]} Qxc5 {[%clk 01:27:46]}
{[%emt 00:03:10]} 13. Ne2 {[%clk 01:29:40]} {[%emt 00:01:05]} O-O-O {[%clk
01:23:58]} {[%emt 00:04:18]} 14. Nd4 {[%clk 01:16:18]} {[%emt 00:13:53]} a6
{[%clk 00:52:34]} {[%emt 00:31:54]} 15. Qe3 {[%clk 01:01:39]} {[%emt 00:15:09]}
Qa5 {[%clk 00:43:52]} {[%emt 00:09:13]} 16. f4 {[%clk 00:36:39]} {[%emt
00:25:29]} g5 {[%clk 00:39:21]} {[%emt 00:05:01]} 17. g3 {[%clk 00:32:01]}
{[%emt 00:05:09]} gxf4 {[%clk 00:36:25]} {[%emt 00:03:26]} 18. gxf4 {[%clk
00:32:21]} {[%emt 00:00:10]} h5 {[%clk 00:32:49]} {[%emt 00:04:05]} 19. Nb3
{[%clk 00:27:23]} {[%emt 00:05:29]} Qc7 {[%clk 00:32:54]} {[%emt 00:00:24]} 20.
Nc5 {[%clk 00:27:05]} {[%emt 00:00:49]} d4 {[%clk 00:28:44]} {[%emt 00:04:40]}
21. Qf2 {[%clk 00:22:05]} {[%emt 00:05:30]} Nxe5 {[%clk 00:24:22]} {[%emt
00:04:51]} 22. Nxa6 {[%clk 00:19:33]} {[%emt 00:03:03]} Qc6 {[%clk 00:23:50]}
{[%emt 00:01:01]} 23. Bg2 {[%clk 00:15:20]} {[%emt 00:04:43]} Qxa6 {[%clk
00:24:02]} {[%emt 00:00:19]} 24. fxe5 {[%clk 00:15:41]} {[%emt 00:00:08]} Bc6
{[%clk 00:20:20]} {[%emt 00:04:11]} 25. Rh3 {[%clk 00:10:46]} {[%emt 00:05:25]}
Nf5 {[%clk 00:15:55]} {[%emt 00:04:55]} 26. Bf1 {[%clk 00:08:54]} {[%emt
00:02:22]} Qb6 {[%clk 00:15:03]} {[%emt 00:01:22]} 27. a5 {[%clk 00:09:01]}
{[%emt 00:00:24]} Qb2 {[%clk 00:13:43]} {[%emt 00:01:49]} 28. Rc1 {[%clk
00:09:15]} {[%emt 00:00:16]} Rd5 {[%clk 00:12:32]} {[%emt 00:01:40]} 29. c4
{[%clk 00:08:30]} {[%emt 00:01:16]} Rxe5+ {[%clk 00:12:42]} {[%emt 00:00:20]}
30. Kd1 {[%clk 00:08:55]} {[%emt 00:00:05]} Ne3+ {[%clk 00:10:38]} {[%emt
00:02:34]} 31. Bxe3 {[%clk 00:08:53]} {[%emt 00:00:32]} dxe3 {[%clk 00:11:04]}
{[%emt 00:00:04]} 32. Qe1 {[%clk 00:08:48]} {[%emt 00:00:35]} Rd8+ {[%clk
00:10:53]} {[%emt 00:00:41]} 33. Bd3 {[%clk 00:09:07]} {[%emt 00:00:10]} Rxd3+
{[%clk 00:11:09]} {[%emt 00:00:14]} 34. cxd3 {[%clk 00:09:32]} {[%emt
00:00:04]} e2+ {[%clk 00:11:35]} {[%emt 00:00:04]} 0-1

[Event "Chess Festival Groningen 2023 | A"]
[Site "Groningen, Netherlands"]
[Date "2023.12.24"]
[Round "4.19"]
[White "Keuning, Selwin"]
[Black "Smeets, Kobe"]
[Result "1-0"]
[TimeControl "90min/40moves + 30min + 30sec/move"]
[WhiteElo "2139"]
[BlackElo "2239"]

1. e4 {[%clk 01:30:57]} c5 {[%clk 01:30:49]} {[%emt 00:00:18]} 2. c3 {[%clk
01:31:24]} Nf6 {[%clk 01:31:09]} {[%emt 00:00:04]} 3. e5 {[%clk 01:31:50]}
{[%emt 00:00:04]} Nd5 {[%clk 01:31:31]} {[%emt 00:00:16]} 4. d4 {[%clk
01:32:18]} cxd4 {[%clk 01:31:50]} {[%emt 00:00:05]} 5. cxd4 {[%clk 01:32:44]}
{[%emt 00:00:31]} e6 {[%clk 01:32:06]} 6. Nf3 {[%clk 01:33:09]} d6 {[%clk
01:32:27]} {[%emt 00:00:05]} 7. Bc4 {[%clk 01:33:35]} {[%emt 00:00:05]} Be7
{[%clk 01:32:46]} {[%emt 00:00:13]} 8. O-O {[%clk 01:34:01]} O-O {[%clk
01:33:01]} {[%emt 00:00:38]} 9. Qe2 {[%clk 01:34:26]} dxe5 {[%clk 01:33:03]}
{[%emt 00:00:11]} 10. dxe5 {[%clk 01:32:50]} {[%emt 00:01:59]} Bd7 {[%clk
01:33:02]} {[%emt 00:00:50]} 11. Rd1 {[%clk 01:27:22]} {[%emt 00:05:47]} Bc6
{[%clk 01:33:10]} {[%emt 00:00:18]} 12. Bxd5 {[%clk 01:25:42]} {[%emt
00:02:07]} Bxd5 {[%clk 01:28:57]} {[%emt 00:05:00]} 13. Nc3 {[%clk 01:24:58]}
{[%emt 00:01:19]} Bxf3 {[%clk 01:17:35]} {[%emt 00:11:33]} 14. Qxf3 {[%clk
01:24:55]} {[%emt 00:00:30]} Qc7 {[%clk 01:17:33]} {[%emt 00:00:35]} 15. Bf4
{[%clk 01:14:52]} {[%emt 00:10:58]} Nc6 {[%clk 01:14:45]} {[%emt 00:02:51]} 16.
Qg3 {[%clk 00:58:20]} {[%emt 00:17:09]} Rfd8 {[%clk 01:05:05]} {[%emt
00:10:33]} 17. Ne4 {[%clk 00:48:52]} {[%emt 00:10:47]} Nd4 {[%clk 00:57:02]}
{[%emt 00:07:28]} 18. Qg4 {[%clk 00:40:37]} {[%emt 00:08:46]} Qc4 {[%clk
00:49:32]} {[%emt 00:07:46]} 19. Bh6 {[%clk 00:35:40]} {[%emt 00:05:27]} Bf8
{[%clk 00:38:16]} {[%emt 00:11:51]} 20. Bg5 {[%clk 00:27:18]} {[%emt 00:09:21]}
h5 {[%clk 00:28:55]} {[%emt 00:09:16]} 21. Qh4 {[%clk 00:25:41]} {[%emt
00:02:08]} Ne2+ {[%clk 00:28:36]} {[%emt 00:00:48]} 22. Kh1 {[%clk 00:26:08]}
{[%emt 00:00:29]} Rd4 {[%clk 00:27:47]} {[%emt 00:00:54]} 23. f3 {[%clk
00:19:47]} {[%emt 00:07:45]} Qc2 {[%clk 00:13:10]} {[%emt 00:14:13]} 24. Rxd4
{[%clk 00:10:17]} {[%emt 00:09:59]} Nxd4 {[%clk 00:13:37]} {[%emt 00:00:56]} 25.
Qxh5 {[%clk 00:09:43]} {[%emt 00:00:14]} Qxb2 {[%clk 00:12:58]} {[%emt
00:01:05]} 26. Rc1 {[%clk 00:07:09]} {[%emt 00:03:19]} Ne2 {[%clk 00:05:16]}
{[%emt 00:07:57]} 27. Re1 {[%clk 00:03:46]} {[%emt 00:03:57]} Qxe5 {[%clk
00:01:36]} {[%emt 00:04:47]} 28. Qh4 {[%clk 00:04:13]} Bb4 {[%clk 00:00:52]}
{[%emt 00:00:40]} 29. Nf6+ {[%clk 00:04:12]} {[%emt 00:00:27]} gxf6 {[%clk
00:01:21]} {[%emt 00:00:28]} 30. Bxf6 {[%clk 00:04:39]} Qxf6 {[%clk 00:00:52]}
{[%emt 00:00:42]} 31. Qxf6 {[%clk 00:05:05]} {[%emt 00:00:06]} Bxe1 {[%clk
00:01:15]} {[%emt 00:00:05]} 32. Qg5+ {[%clk 00:04:36]} {[%emt 00:01:07]} Kh8
{[%clk 00:01:11]} {[%emt 00:00:22]} 33. Qe5+ {[%clk 00:04:59]} {[%emt
00:00:05]} Kg8 {[%clk 00:01:27]} {[%emt 00:00:41]} 34. Qxe2 {[%clk 00:05:26]}
Bc3 {[%clk 00:01:35]} {[%emt 00:00:09]} 35. Qe3 {[%clk 00:04:07]} {[%emt
00:02:14]} Rc8 {[%clk 00:01:05]} {[%emt 00:00:23]} 36. h4 {[%clk 00:02:33]}
{[%emt 00:02:46]} a5 {[%clk 00:01:04]} 37. Qg5+ {[%clk 00:02:01]} {[%emt
00:00:51]} Kh7 {[%clk 00:01:09]} {[%emt 00:00:24]} 38. Qe7 {[%clk 00:02:12]}
{[%emt 00:00:23]} Kg7 {[%clk 00:01:04]} {[%emt 00:00:32]} 39. Qxb7 {[%clk
00:02:32]} {[%emt 00:00:14]} Rc4 {[%clk 00:01:15]} {[%emt 00:00:37]} 40. g3
{[%clk 00:00:40]} {[%emt 00:02:16]} Bf6 {[%clk 00:01:43]} 41. Qb3 {[%clk
00:30:02]} {[%emt 00:01:12]} Rb4 {[%clk 00:31:03]} {[%emt 00:00:51]} 42. Qa3
{[%clk 00:27:26]} {[%emt 00:03:16]} Bd8 {[%clk 00:27:22]} {[%emt 00:04:03]} 43.
Kg2 {[%clk 00:24:28]} {[%emt 00:03:48]} Bb6 {[%clk 00:23:22]} {[%emt 00:04:35]}
44. Kh3 {[%clk 00:22:24]} {[%emt 00:02:16]} Bd8 {[%clk 00:23:23]} {[%emt
00:00:33]} 45. h5 {[%clk 00:18:11]} {[%emt 00:05:01]} Bb6 {[%clk 00:14:29]}
{[%emt 00:09:30]} 46. Qc3+ {[%clk 00:16:09]} {[%emt 00:01:55]} Bd4 {[%clk
00:14:57]} {[%emt 00:00:37]} 47. Qc7 {[%clk 00:15:48]} {[%emt 00:00:16]} Rb5
{[%clk 00:15:26]} {[%emt 00:00:08]} 48. h6+ {[%clk 00:13:22]} {[%emt 00:03:44]}
Kg6 {[%clk 00:15:50]} 49. Qc2+ {[%clk 00:13:45]} Kf6 {[%clk 00:12:59]} {[%emt
00:03:06]} 50. g4 {[%clk 00:10:21]} {[%emt 00:03:26]} Be5 {[%clk 00:09:52]}
{[%emt 00:03:55]} 51. Qe4 {[%clk 00:10:16]} {[%emt 00:00:17]} Bb2 {[%clk
00:07:55]} {[%emt 00:02:27]} 52. Qa8 {[%clk 00:04:52]} {[%emt 00:05:54]} Kg6
{[%clk 00:02:13]} {[%emt 00:06:19]} 53. Qg8+ {[%clk 00:05:17]} {[%emt
00:00:05]} Kxh6 {[%clk 00:02:36]} {[%emt 00:00:05]} 54. Qxf7 {[%clk 00:05:43]}
{[%emt 00:00:14]} e5 {[%clk 00:01:31]} {[%emt 00:01:21]} 55. Kh4 {[%clk
00:05:03]} {[%emt 00:01:44]} e4 {[%clk 00:01:14]} {[%emt 00:00:13]} 56. Qe6+
{[%clk 00:05:25]} {[%emt 00:00:23]} 1-0